bitfinex/quotes_BTCUSD_20251202
["timestamp","ask_amount","ask_price","bid_price","bid_amount"]
[1764682801639,2.0,87672.0,87671.0,0.2281256]
[1764682801894,0.0915248,87675.0,87670.0,0.01761]
[1764682802079,0.0915248,87675.0,87658.0,0.01761]
[1764682802080,0.1143968,87675.0,87663.0,0.01761]
[1764682802272,0.01140536,87678.0,87665.0,0.01140706]
[1764682802396,0.0002,87680.0,87677.0,0.02399]
[1764682802596,0.0002,87680.0,87671.0,0.01140628]
[1764682802597,0.0002,87680.0,87679.0,0.02399]
[1764682802904,0.0002,87680.0,87679.0,0.29078479]
[1764682803103,0.22830218,87680.0,87679.0,0.06268]
[1764682803326,0.0002,87680.0,87679.0,0.06268]
[1764682803710,0.0002,87680.0,87679.0,0.02399]
[1764682803909,0.0002,87680.0,87679.0,0.25209479]
[1764682804466,0.0002,87680.0,87679.0,0.29078479]
[1764682804671,0.0012,87680.0,87679.0,0.29078479]
[1764682805298,0.0002,87690.0,87689.0,0.22807877]
[1764682805476,0.0002,87690.0,87689.0,0.25206877]
[1764682805681,0.0002,87690.0,87689.0,0.28752877]
[1764682805984,0.0002,87690.0,87689.0,0.05945]
[1764682806181,0.0002,87690.0,87689.0,0.02399]
[1764682806382,0.0002,87690.0,87688.0,0.03573]
[1764682807026,0.0002,87690.0,87689.0,0.02393]
[1764682808486,0.0002,87690.0,87688.0,0.29927064]
[1764682808487,0.0002,87690.0,87688.0,0.03573]
[1764682808723,0.0002,87690.0,87688.0,0.24569114]
[1764682808872,0.00202513,87689.0,87688.0,0.01761]
[1764682809250,0.00202513,87689.0,87682.0,0.01828]
[1764682809455,0.22808441,87687.0,87683.0,0.22809395]
[1764682809659,0.22808441,87687.0,87675.0,0.01828]
[1764682809660,0.01140484,87682.0,87675.0,0.01828]
[1764682809874,0.0002,87690.0,87677.0,0.01140549]
[1764682810241,0.0116038,87690.0,87689.0,0.02393]
[1764682810379,0.0002,87690.0,87689.0,0.02393]
[1764682810740,0.0114051,87680.0,87668.0,0.03546]
[1764682810933,0.01140575,87675.0,87671.0,0.01828]
[1764682811170,0.01140641,87670.0,87664.0,0.07393018]
[1764682811401,0.01140654,87669.0,87663.0,0.01761]
[1764682811648,0.0114068,87667.0,87663.0,0.01761]
[1764682811888,0.0114068,87667.0,87662.0,0.22814856]
[1764682812060,0.01140706,87665.0,87661.0,0.22815162]
[1764682812263,0.23955136,87664.0,87661.0,0.22815145]
[1764682812465,0.01140693,87666.0,87662.0,0.22814723]
[1764682812669,0.01140706,87665.0,87662.0,0.22814723]
[1764682812848,0.01140732,87663.0,87660.0,0.22815404]
[1764682813042,0.10293186,87665.0,87660.0,0.22815404]
[1764682813043,0.0915248,87665.0,87662.0,0.22814902]
[1764682813545,0.10293186,87665.0,87660.0,0.23956175]
[1764682813751,0.0003824,87670.0,87668.0,0.2281331]
[1764682814628,0.0003824,87670.0,87649.0,0.36043408]
[1764682814629,0.01140693,87666.0,87663.0,0.22814547]
[1764682814915,0.01140693,87666.0,87661.0,0.01140758]
[1764682814916,0.0915248,87664.0,87661.0,0.01140758]
[1764682815335,0.0915248,87664.0,87662.0,0.22814854]
[1764682815544,0.2395298,87672.0,87665.0,0.01140706]
[1764682815753,0.2395298,87672.0,87668.0,0.22813327]
[1764682815754,0.01140615,87672.0,87668.0,0.22813327]
[1764682815961,0.02956562,87676.0,87669.0,0.02393]
[1764682816310,0.01140589,87674.0,87669.0,0.02393]
[1764682816513,0.01140615,87672.0,87669.0,0.02393]
[1764682816739,0.23952976,87672.0,87669.0,0.02393]
[1764682817119,0.0013824,87670.0,87669.0,0.02393]
[1764682817344,0.0013824,87670.0,87668.0,0.22813327]
[1764682817591,0.0003824,87670.0,87668.0,0.22813327]
[1764682818186,0.0013824,87670.0,87669.0,0.22813081]
[1764682818339,0.01278881,87670.0,87665.0,0.01140706]
[1764682818539,0.24091717,87670.0,87667.0,0.22813516]
[1764682818727,0.23991717,87670.0,87667.0,0.22813516]
[1764682818931,0.0003824,87670.0,87668.0,0.22813182]
[1764682819315,0.0003824,87670.0,87665.0,0.22814121]
[1764682819433,0.0003824,87670.0,87667.0,0.2281335]
[1764682819633,0.01178881,87670.0,87668.0,0.22813322]
[1764682820048,0.0013824,87670.0,87669.0,0.02393]
[1764682820250,0.0013824,87670.0,87669.0,0.25206081]
[1764682820861,0.0003824,87670.0,87669.0,0.25206081]
[1764682821286,0.0013824,87670.0,87669.0,0.25206081]
[1764682821703,0.00281588,87670.0,87669.0,0.25206081]
[1764682822080,0.00281588,87670.0,87669.0,0.28752081]
[1764682822434,0.00281588,87670.0,87669.0,0.3500438]
[1764682822635,0.00281588,87670.0,87669.0,0.3681638]
[1764682822969,0.00281588,87670.0,87669.0,0.39098356]
[1764682823803,0.00181588,87670.0,87669.0,0.39098356]
[1764682824373,0.00181588,87670.0,87669.0,0.3681638]
[1764682824711,0.00181588,87670.0,87669.0,0.3500438]
[1764682824919,0.00181588,87670.0,87669.0,0.3681638]
[1764682825126,0.00181588,87670.0,87669.0,0.3691638]
[1764682825340,0.00181588,87670.0,87669.0,0.3721638]
[1764682825540,0.00181588,87670.0,87669.0,0.25206081]
[1764682825940,0.00181588,87670.0,87669.0,0.25406081]
[1764682826149,0.00181588,87670.0,87669.0,0.25206081]
[1764682826631,0.00181588,87670.0,87669.0,0.25306081]
[1764682827009,0.00181588,87670.0,87669.0,0.22913081]
[1764682827417,0.00181588,87670.0,87669.0,0.001]
[1764682827622,0.22994408,87670.0,87669.0,0.001]
[1764682828712,0.00181588,87670.0,87667.0,0.22813582]
[1764682828872,0.22813612,87667.0,87665.0,0.22813907]
[1764682829076,0.22813467,87668.0,87665.0,0.22813907]
[1764682829405,0.01140693,87666.0,87657.0,0.0468681]
[1764682829593,0.2395483,87665.0,87661.0,0.01140758]
[1764682829792,0.31965808,87669.0,87666.0,0.22813727]
[1764682830099,0.22813631,87667.0,87664.0,0.22814315]
[1764682830290,0.0114068,87667.0,87665.0,0.22814026]
[1764682830573,0.0915248,87669.0,87667.0,0.22813601]
[1764682830867,0.0915248,87669.0,87663.0,0.01140732]
[1764682830868,0.22815683,87659.0,87655.0,0.03546]
[1764682831067,0.22815683,87659.0,87655.0,0.27503353]
[1764682831437,0.0114068,87667.0,87651.0,0.01761]
[1764682831438,0.0003824,87670.0,87669.0,0.22813081]
[1764682831642,0.0003824,87670.0,87669.0,0.25206081]
[1764682832100,2.4e-06,87670.0,87669.0,0.28752081]
[1764682832304,0.01812,87683.0,87682.0,0.01140484]
[1764682832523,0.0002,87690.0,87689.0,0.04221]
[1764682832725,0.0002,87690.0,87679.0,0.24638381]
[1764682832726,0.01140445,87685.0,87679.0,0.24638381]
[1764682832948,0.01140458,87684.0,87670.0,0.01828]
[1764682833152,0.0915248,87682.0,87675.0,0.01140575]
[1764682833360,0.23951044,87679.0,87674.0,0.22811555]
[1764682833563,0.01140458,87684.0,87679.0,0.23950835]
[1764682833785,0.0915248,87682.0,87680.0,0.22810105]
[1764682834384,0.0915248,87685.0,87681.0,0.01140497]
[1764682834587,0.01140458,87684.0,87680.0,0.0114051]
[1764682834886,0.00180718,87682.0,87681.0,0.22809708]
[1764682835319,0.01140523,87679.0,87671.0,0.07392927]
[1764682835483,0.22810739,87678.0,87675.0,0.22811444]
[1764682835691,0.01140536,87678.0,87674.0,0.01140589]
[1764682835872,0.23951332,87678.0,87674.0,0.23952301]
[1764682836073,0.0015892,87675.0,87672.0,0.23952786]
[1764682836259,0.23952176,87675.0,87670.0,0.24640666]
[1764682836467,0.01140615,87672.0,87662.0,0.01140745]
[1764682836676,0.23953036,87672.0,87668.0,0.2281329]
[1764682836877,0.022872,87673.0,87668.0,0.2281329]
[1764682836878,0.01140562,87676.0,87669.0,0.23953571]
[1764682837079,0.01812,87675.0,87670.0,0.23953311]
[1764682837294,0.01812,87675.0,87672.0,0.22812134]
[1764682837495,0.01812,87675.0,87672.0,0.23952749]
[1764682838496,0.24623547,87675.0,87672.0,0.22812134]
[1764682838700,0.01812,87675.0,87673.0,0.22811998]
[1764682839474,0.01140667,87668.0,87661.0,0.01140758]
[1764682839658,0.01140706,87665.0,87662.0,0.22814855]
[1764682839863,0.01140706,87665.0,87660.0,0.01140771]
[1764682839864,0.0915248,87667.0,87661.0,0.01140758]
[1764682840062,0.0915248,87667.0,87665.0,0.22814082]
[1764682840489,0.0915248,87667.0,87663.0,0.22814607]
[1764682840951,0.23954452,87667.0,87663.0,0.22814607]
[1764682841201,0.23955834,87662.0,87659.0,0.22815683]
[1764682841321,0.01140693,87666.0,87660.0,0.22815423]
[1764682841322,0.23954864,87665.0,87660.0,0.22815423]
[1764682841528,0.23954864,87665.0,87662.0,0.22814867]
[1764682841727,0.23954864,87665.0,87661.0,0.22814996]
[1764682841934,0.23954864,87665.0,87662.0,0.22814864]
[1764682842138,0.22813956,87666.0,87662.0,0.22814864]
[1764682842341,0.23954828,87665.0,87661.0,0.23955754]
[1764682842565,0.01152156,87666.0,87663.0,0.01140732]
[1764682842566,0.00011463,87666.0,87663.0,0.01140732]
[1764682842802,0.00011463,87666.0,87664.0,0.22814151]
[1764682843013,0.00011463,87666.0,87665.0,0.22814121]
[1764682843796,0.01140706,87665.0,87662.0,0.2281481]
[1764682844002,0.01152156,87666.0,87661.0,0.01140758]
[1764682844370,0.01152156,87666.0,87663.0,0.22814638]
[1764682844569,0.01140745,87662.0,87653.0,0.2281715]
[1764682844772,0.01140745,87662.0,87635.0,0.4145248]
[1764682844773,0.2281825,87650.0,87646.0,0.22819046]
[1764682844973,0.01140849,87654.0,87645.0,0.01140966]
[1764682844974,0.0915248,87652.0,87645.0,0.01140966]
[1764682845195,0.01812,87653.0,87651.0,0.22817765]
[1764682845528,0.01812,87653.0,87652.0,0.03878]
[1764682845727,0.1096448,87653.0,87652.0,0.03878]
[1764682846112,0.33781725,87653.0,87652.0,0.03878]
[1764682846335,0.1096448,87653.0,87652.0,0.03878]
[1764682847192,0.33781725,87653.0,87652.0,0.03878]
[1764682847368,0.31969725,87653.0,87652.0,0.01653]
[1764682847575,0.0915248,87653.0,87652.0,0.01653]
[1764682848854,0.01812,87664.0,87660.0,0.01140771]
[1764682849063,0.01812,87664.0,87662.0,0.01653]
[1764682849377,0.00011463,87666.0,87664.0,0.22814381]
[1764682849521,0.01812,87665.0,87663.0,0.06649732]
[1764682849722,0.24637359,87666.0,87663.0,0.26180331]
[1764682849919,0.001,87664.0,87663.0,0.25039642]
[1764682850128,0.22914382,87664.0,87663.0,0.02225]
[1764682850329,0.22914382,87664.0,87662.0,0.01653]
[1764682850579,0.22814642,87663.0,87662.0,0.01653]
[1764682851176,0.22914382,87664.0,87662.0,0.01653]
[1764682851378,0.001,87664.0,87662.0,0.24467782]
[1764682851691,0.00011463,87666.0,87662.0,0.25608417]
[1764682852019,0.001,87665.0,87663.0,0.01140732]
[1764682852498,0.01823463,87666.0,87663.0,0.01140732]
[1764682852716,0.00011463,87666.0,87663.0,0.23955374]
[1764682852859,0.24737556,87666.0,87663.0,0.23955374]
[1764682853065,0.00124659,87664.0,87663.0,0.23955374]
[1764682853447,0.022872,87659.0,87649.0,0.01140914]
[1764682853667,0.2510298,87659.0,87654.0,0.22816772]
[1764682853899,0.23956756,87658.0,87655.0,0.01140836]
[1764682854248,0.0342788,87667.0,87658.0,0.03365797]
[1764682854445,0.01140706,87665.0,87659.0,0.02225]
[1764682854639,0.22815417,87661.0,87659.0,0.02225]
[1764682855205,0.22815423,87660.0,87659.0,0.02225]
[1764682855367,0.23956194,87660.0,87657.0,0.23956493]
[1764682855573,0.01140745,87662.0,87659.0,0.02225]
[1764682855860,0.22814925,87662.0,87661.0,0.01653]
[1764682856198,0.23955413,87663.0,87661.0,0.01653]
[1764682857539,0.00011463,87666.0,87663.0,0.01140732]
[1764682857700,0.00011463,87666.0,87665.0,0.25039121]
[1764682858059,0.00011463,87666.0,87665.0,0.28323121]
[1764682858267,0.00011463,87666.0,87665.0,0.25039121]
[1764682858467,0.00011463,87666.0,87665.0,0.28323121]
[1764682860955,0.00011463,87666.0,87665.0,0.02225]
[1764682861154,0.00011463,87666.0,86666.0,0.82629484]
[1764682861155,0.01140875,87652.0,87644.0,0.01140979]
[1764682861424,0.01140888,87651.0,87644.0,0.01140979]
[1764682861585,0.01140927,87648.0,87644.0,0.23960557]
[1764682861784,0.01140901,87650.0,87647.0,0.22818803]
[1764682862079,0.01140966,87645.0,87638.0,0.22821114]
[1764682862287,0.22820368,87642.0,87638.0,0.22821111]
[1764682862491,0.22820368,87642.0,87638.0,0.2282115]
[1764682862704,0.01141044,87639.0,87629.0,0.04425174]
[1764682862904,0.01141057,87638.0,87630.0,0.02794161]
[1764682863097,0.01141083,87636.0,87632.0,0.01141135]
[1764682863415,0.0114107,87637.0,87634.0,0.01141109]
[1764682863812,0.23962484,87637.0,87634.0,0.01141109]
[1764682864036,0.22821716,87636.0,87634.0,0.01141109]
[1764682864195,0.22822198,87634.0,87630.0,0.01141161]
[1764682864519,0.01141109,87634.0,87631.0,0.23964009]
[1764682864753,0.23963314,87634.0,87631.0,0.01141148]
[1764682865164,0.03439727,87637.0,87633.0,0.01141122]
[1764682865165,0.02298657,87637.0,87633.0,0.01141122]
[1764682865360,0.02298657,87637.0,87632.0,0.228227]
[1764682865361,0.2282223,87634.0,87631.0,0.01653]
[1764682865663,0.22822494,87633.0,87631.0,0.01653]
[1764682866018,0.01141109,87634.0,87631.0,0.01653]
[1764682866219,0.00011457,87637.0,87634.0,0.01141109]
[1764682866665,0.01152527,87637.0,87634.0,0.01141109]
[1764682867037,0.00011457,87637.0,87634.0,0.01141109]
[1764682867341,0.00011457,87637.0,87636.0,0.25300671]
[1764682867762,0.00051983,87637.0,87636.0,0.28723671]
[1764682869962,0.00051983,87637.0,87636.0,0.05902]
[1764682870218,0.22873394,87637.0,87636.0,0.02579]
[1764682870383,0.09204463,87637.0,87636.0,0.001]
[1764682870621,0.32025874,87637.0,87636.0,0.001]
[1764682870796,0.22873394,87637.0,87636.0,0.001]
[1764682870997,0.22873394,87637.0,87631.0,0.02794148]
[1764682870998,0.01141096,87635.0,87632.0,0.23963662]
[1764682871198,0.23963201,87635.0,87632.0,0.23963662]
[1764682871518,0.00028058,87633.0,87631.0,0.25617079]
[1764682871724,0.22822225,87634.0,87631.0,0.25617079]
[1764682871900,0.23963201,87635.0,87632.0,0.22822655]
[1764682872100,0.23963201,87635.0,87633.0,0.22822429]
[1764682872692,0.23963034,87635.0,87632.0,0.2396379]
[1764682872894,0.23963029,87635.0,87631.0,0.2561709]
[1764682873302,0.00011457,87637.0,87632.0,0.23963587]
[1764682873466,0.00011457,87637.0,87636.0,0.25300671]
[1764682873867,0.00011457,87637.0,87636.0,0.28723671]
[1764682874304,0.00011457,87637.0,87632.0,0.23963587]
[1764682874305,0.00011457,87637.0,87616.0,0.09675299]
[1764682874484,0.01141109,87634.0,87631.0,0.01697]
[1764682874711,0.00011457,87637.0,87633.0,0.01141122]
[1764682874893,0.00011457,87637.0,87633.0,0.03620122]
[1764682875097,0.00011457,87637.0,87635.0,0.22821915]
[1764682877490,0.00011457,87637.0,87636.0,0.02479]
[1764682877695,0.00011457,87637.0,87636.0,0.05902]
[1764682877840,0.00051983,87637.0,87636.0,0.05902]
[1764682878631,0.00051983,87637.0,87636.0,0.12154299]
[1764682879564,0.00051983,87637.0,87636.0,0.18530442]
[1764682879766,0.00051983,87637.0,87636.0,0.16248466]
[1764682880816,0.00051983,87637.0,87636.0,0.16448466]
[1764682881678,0.00051983,87637.0,87636.0,0.39270137]
[1764682881882,0.00051983,87637.0,87636.0,0.3698797]
[1764682887041,0.00051983,87637.0,87636.0,0.37457946]
[1764682891843,0.00051983,87637.0,87636.0,0.3517597]
[1764682898832,0.00051983,87637.0,87636.0,0.28923671]
[1764682900341,0.00051983,87637.0,87636.0,0.37457946]
[1764682901121,0.00051983,87637.0,87636.0,0.3517597]
[1764682901344,0.00051983,87637.0,87636.0,0.37457946]
[1764682901548,0.00051983,87637.0,87636.0,0.6747597]
[1764682901798,0.00051983,87637.0,87636.0,0.69757946]
[1764682901978,0.00051983,87637.0,87636.0,0.72710691]
[1764682908104,0.00051983,87637.0,87636.0,0.72335715]
[1764682908488,0.00051983,87637.0,87636.0,0.6938297]
[1764682908929,0.00051983,87637.0,87636.0,0.30830671]
[1764682909715,0.00051983,87637.0,87636.0,0.3708297]
[1764682910444,0.00051983,87637.0,87636.0,0.02679]
[1764682910445,0.22873394,87637.0,87636.0,0.02679]
[1764682910664,0.22873394,87637.0,87636.0,0.002]
[1764682911603,0.00051983,87637.0,87636.0,0.002]
[1764682911808,0.00051983,87637.0,87636.0,0.28699671]
[1764682911948,0.00051983,87637.0,87636.0,0.25181671]
[1764682912161,0.22873394,87637.0,87636.0,0.0236]
[1764682912559,0.22873394,87637.0,87636.0,0.002]
[1764682912785,0.25160594,87637.0,87636.0,0.002]
[1764682913168,0.25160594,87637.0,87631.0,0.01697]
[1764682913169,0.22822713,87632.0,87631.0,0.01697]
[1764682913570,0.22847654,87632.0,87631.0,0.01697]
[1764682913967,0.00024941,87632.0,87631.0,0.24519973]
[1764682914226,0.22847654,87632.0,87631.0,0.03857]
[1764682915739,0.01141213,87626.0,87620.0,0.06252299]
[1764682915924,0.2282555,87622.0,87620.0,0.06252299]
[1764682916076,0.01141252,87623.0,87620.0,0.06252299]
[1764682916278,0.23966309,87623.0,87622.0,0.0216]
[1764682916498,0.00024941,87632.0,87622.0,0.03301265]
[1764682916676,0.01141213,87626.0,87623.0,0.03301252]
[1764682916871,0.23965623,87626.0,87623.0,0.03301252]
[1764682917303,0.022872,87634.0,87625.0,0.0216]
[1764682917518,0.022872,87634.0,87626.0,0.03301213]
[1764682917519,0.01141148,87631.0,87626.0,0.03301213]
[1764682917723,0.01141148,87631.0,87628.0,0.23964693]
[1764682917923,0.22847723,87632.0,87629.0,0.23964525]
[1764682918138,0.22823011,87631.0,87628.0,0.23964936]
[1764682918558,0.22823359,87630.0,87626.0,0.23965253]
[1764682918702,0.2396452,87630.0,87627.0,0.23964987]
[1764682919129,0.2396452,87630.0,87627.0,0.011412]
[1764682919332,0.22823791,87628.0,87624.0,0.23966022]
[1764682919534,0.01141187,87628.0,87625.0,0.01141226]
[1764682919736,0.01141187,87628.0,87627.0,0.001]
[1764682919737,0.23964941,87628.0,87627.0,0.001]
[1764682920605,0.01141161,87630.0,87627.0,0.001]
[1764682920808,0.22823494,87629.0,87627.0,0.001]
[1764682921012,0.00024941,87632.0,87627.0,0.001]
[1764682921375,0.00024941,87632.0,87631.0,0.0216]
[1764682921568,0.22823915,87628.0,87625.0,0.22824388]
[1764682921773,0.0915248,87627.0,87625.0,0.22824388]
[1764682921974,0.0915248,87627.0,87623.0,0.01141252]
[1764682922178,0.22823754,87628.0,87626.0,0.0216]
[1764682922387,0.01141148,87631.0,87626.0,0.0216]
[1764682922579,0.22823796,87628.0,87626.0,0.0216]
[1764682922761,0.01141174,87629.0,87626.0,0.0216]
[1764682922762,0.33116949,87630.0,87626.0,0.03301213]
[1764682923066,0.22823679,87629.0,87626.0,0.03301213]
[1764682923212,0.22823786,87628.0,87626.0,0.03301213]
[1764682923416,0.01141226,87625.0,87621.0,0.03518]
[1764682923779,0.22827923,87612.0,87606.0,0.03518]
[1764682923907,0.23968498,87615.0,87611.0,0.0216]
[1764682924113,0.01812,87626.0,87618.0,0.23967517]
[1764682924390,0.01812,87626.0,87624.0,0.03817]
[1764682924671,0.01812,87626.0,87625.0,0.0216]
[1764682924935,0.01812,87626.0,87625.0,0.05678]
[1764682925094,0.01812,87626.0,87625.0,0.0216]
[1764682925501,0.33117113,87630.0,87625.0,0.0216]
[1764682925828,2.0,87629.0,87628.0,0.22823754]
[1764682926128,0.0915248,87630.0,87627.0,0.23965215]
[1764682926427,0.31975761,87630.0,87627.0,0.23965215]
[1764682927413,0.00024941,87632.0,87627.0,0.23965215]
[1764682927414,0.00024941,87632.0,87629.0,0.02116]
[1764682927596,0.00024941,87632.0,87631.0,0.26557973]
[1764682927990,0.00024941,87632.0,87631.0,0.29844973]
[1764682930880,0.00124941,87632.0,87631.0,0.29844973]
[1764682931906,0.00024941,87632.0,87631.0,0.29844973]
[1764682933922,0.01141187,87628.0,87624.0,0.01657]
[1764682934094,0.011412,87627.0,87624.0,0.01657]
[1764682934264,0.011412,87627.0,87615.0,0.03287]
[1764682934265,0.01141317,87618.0,87615.0,0.03287]
[1764682934466,0.22828183,87611.0,87607.0,0.02838461]
[1764682934667,0.22828165,87612.0,87607.0,0.01697]
[1764682934863,0.01141383,87613.0,87610.0,0.03769]
[1764682935107,0.01141331,87617.0,87610.0,0.04910422]
[1764682935318,0.01141344,87616.0,87612.0,0.02116]
[1764682935515,0.22827446,87614.0,87612.0,0.02116]
[1764682935748,0.01141357,87615.0,87612.0,0.24943745]
[1764682935933,0.23967459,87619.0,87615.0,0.22827134]
[1764682936133,0.23967459,87619.0,87615.0,0.24943134]
[1764682936349,0.01141265,87622.0,87618.0,0.24942335]
[1764682936546,0.022872,87620.0,87619.0,0.24942099]
[1764682936748,0.26253749,87623.0,87619.0,0.24942099]
[1764682936893,0.23966806,87622.0,87619.0,0.24942099]
[1764682937127,0.01141265,87622.0,87621.0,0.01619]
[1764682937333,0.23966582,87622.0,87621.0,0.01619]
[1764682937788,0.26254022,87623.0,87621.0,0.01619]
[1764682938132,0.22825317,87622.0,87621.0,0.01619]
[1764682938380,0.26254022,87623.0,87613.0,0.01141383]
[1764682938381,0.2282662,87617.0,87613.0,0.01141383]
[1764682938579,0.01141291,87620.0,87616.0,0.22826838]
[1764682938779,0.01241265,87622.0,87617.0,0.23967869]
[1764682938961,0.01141278,87621.0,87617.0,0.23967869]
[1764682939157,0.001,87622.0,87619.0,0.23967403]
[1764682939356,0.001,87622.0,87621.0,0.26560578]
[1764682939794,0.001,87622.0,87621.0,0.29847578]
[1764682940176,0.001,87622.0,87621.0,0.03735]
[1764682940355,0.22825589,87621.0,87618.0,0.22826299]
[1764682940563,0.23966867,87621.0,87617.0,0.23967928]
[1764682940794,0.22825903,87620.0,87617.0,0.23967928]
[1764682940994,0.23966867,87621.0,87618.0,0.22826235]
[1764682941194,0.01141278,87621.0,87619.0,0.22826049]
[1764682941530,0.022872,87622.0,87621.0,0.22825578]
[1764682941677,0.022872,87622.0,87621.0,0.24444578]
[1764682941878,0.26253248,87624.0,87621.0,0.01619]
[1764682942074,0.001,89872.0,87624.0,0.01141239]
[1764682942075,0.00024941,87632.0,87624.0,0.01141239]
[1764682942305,0.0915248,87628.0,87627.0,0.011412]
[1764682942638,0.0915248,87628.0,87627.0,0.23965215]
[1764682942777,0.0915248,87628.0,87627.0,0.29368215]
[1764682943112,0.0915248,87628.0,87627.0,0.28227015]
[1764682943501,0.01141226,87625.0,87621.0,0.24444506]
[1764682943708,0.22825102,87623.0,87621.0,0.01619]
[1764682943910,0.22825317,87622.0,87621.0,0.01619]
[1764682944493,0.22825317,87622.0,87612.0,0.2282772]
[1764682944494,0.01141344,87616.0,87612.0,0.22827752]
[1764682944897,0.0114137,87614.0,87610.0,0.01653]
[1764682945117,0.22826912,87616.0,87612.0,0.23968848]
[1764682945321,0.22826361,87618.0,87615.0,0.22826912]
[1764682945520,0.22826361,87618.0,87614.0,0.23968679]
[1764682945521,0.22826685,87617.0,87614.0,0.23968679]
[1764682945943,0.23967678,87618.0,87615.0,0.22827084]
[1764682946164,0.01141331,87617.0,87613.0,0.23968814]
[1764682946396,0.22826912,87616.0,87613.0,0.22827603]
[1764682947024,0.2396855,87615.0,87612.0,0.23969277]
[1764682947222,0.22828183,87611.0,87610.0,0.01653]
[1764682947436,0.01141513,87603.0,87601.0,0.01619]
[1764682947881,0.23972054,87602.0,87589.0,0.04572695]
[1764682948103,0.01141643,87593.0,87589.0,0.04906]
[1764682948330,0.22833656,87590.0,87589.0,0.01619]
[1764682948563,0.22833656,87590.0,87589.0,0.0165724]
[1764682949263,0.22833656,87590.0,87589.0,0.0387324]
[1764682949699,0.22833656,87590.0,87589.0,0.0377324]
[1764682950155,0.22833401,87591.0,87589.0,0.0377324]
[1764682950352,0.01141656,87592.0,87590.0,0.02116]
[1764682950685,0.01141656,87592.0,87589.0,0.0165724]
[1764682950686,0.22833656,87590.0,87589.0,0.0165724]
[1764682952465,0.22833656,87590.0,87589.0,0.0377324]
[1764682953022,0.022872,87594.0,87589.0,0.0377324]
[1764682953199,0.01141591,87597.0,87593.0,0.02116]
[1764682953405,0.22832405,87595.0,87592.0,0.01141656]
[1764682953606,0.22832405,87595.0,87592.0,0.27261687]
[1764682953808,0.22831832,87597.0,87596.0,0.02116]
[1764682954420,0.22831832,87597.0,87596.0,0.05403]
[1764682954967,0.0915248,87600.0,87596.0,0.05403]
[1764682955152,0.0915248,87600.0,87599.0,0.02023]
[1764682955905,0.0915248,87600.0,87599.0,0.2485431]
[1764682956137,0.0915248,87600.0,87599.0,0.2810631]
[1764682956340,0.0915248,87600.0,87599.0,0.05275]
[1764682957030,0.3208353,87600.0,87599.0,0.05275]
[1764682957160,0.0925248,87600.0,87599.0,0.05275]
[1764682957549,0.0915248,87600.0,87599.0,0.05275]
[1764682957746,0.0925248,87600.0,87599.0,0.2810631]
[1764682958235,0.001,87600.0,87599.0,0.2810631]
[1764682963043,0.001,87600.0,87599.0,0.02023]
[1764682963382,0.2293105,87600.0,87599.0,0.02023]
[1764682963951,0.2283131,87599.0,87598.0,0.0156]
[1764682964716,0.22833135,87592.0,87590.0,0.03252]
[1764682964931,0.22833135,87592.0,87589.0,0.0165724]
[1764682965139,0.22833135,87592.0,87591.0,0.03665]
[1764682965548,0.22833135,87592.0,87591.0,0.01619]
[1764682965767,0.22833135,87592.0,87589.0,0.0165724]
[1764682965768,0.22833656,87590.0,87589.0,0.0165724]
[1764682965974,0.22833656,87590.0,87589.0,0.0003824]
[1764682970606,0.01141656,87592.0,87589.0,0.0003824]
[1764682970814,0.22833656,87590.0,87589.0,0.0003824]
[1764682976696,0.01141578,87598.0,87589.0,0.29730093]
[1764682977040,0.23974737,87593.0,87590.0,0.02046]
[1764682977198,0.22833318,87592.0,87590.0,0.05298]
[1764682977416,0.22833318,87592.0,87590.0,0.03252]
[1764682977589,0.22833656,87590.0,87589.0,0.0159824]
[1764682977996,0.22833656,87590.0,87589.0,0.0003824]
[1764682978289,0.25120856,87590.0,87589.0,0.0003824]
[1764682979343,0.022872,87590.0,87589.0,0.0003824]
[1764682979542,0.03428856,87592.0,87589.0,0.0208424]
[1764682979769,0.22833656,87590.0,87589.0,0.0208424]
[1764682980318,0.01141617,87595.0,87591.0,0.228333]
[1764682980524,0.22832895,87593.0,87591.0,0.02046]
[1764682980730,0.22833098,87593.0,87592.0,0.0156]
[1764682980931,0.22833098,87593.0,87592.0,0.03606]
[1764682981158,0.45650881,87622.0,87592.0,0.30832778]
[1764682981360,2.1096448,87600.0,87599.0,0.02046]
[1764682981564,2.3379553,87600.0,87599.0,0.02046]
[1764682981872,0.01141617,87595.0,87592.0,0.0156]
[1764682982079,0.22832848,87594.0,87592.0,0.0156]
[1764682982303,0.01141617,87595.0,87592.0,0.0156]
[1764682982550,0.01141565,87599.0,87597.0,0.22831597]
[1764682982551,2.0,87599.0,87597.0,0.22831597]
[1764682982759,0.33441409,87611.0,87606.0,0.01141474]
[1764682982975,2.0,87610.0,87608.0,0.0156]
[1764682983120,2.22828479,87610.0,87608.0,0.0156]
[1764682983493,0.22828479,87610.0,87609.0,0.02046]
[1764682984844,0.22928479,87610.0,87609.0,0.02046]
[1764682987946,0.001,87610.0,87609.0,0.02046]
[1764682989091,0.22928444,87610.0,87609.0,0.02046]
[1764682992110,0.22828704,87609.0,87608.0,0.0156]
[1764682992722,0.001,87610.0,87608.0,0.0156]
[1764682992990,0.22928682,87610.0,87608.0,0.0156]
[1764682993166,0.22828704,87609.0,87608.0,0.0156]
[1764682993521,0.22928704,87609.0,87608.0,0.0156]
[1764682996758,0.001,87609.0,87608.0,0.0156]
[1764682996955,0.001,87609.0,87608.0,0.24388965]
[1764682997366,0.22928704,87609.0,87608.0,0.0156]
[1764682997778,0.22830268,87603.0,87602.0,0.01448]
[1764682998295,0.22830007,87604.0,87602.0,0.0626]
[1764682998516,0.22830069,87604.0,87603.0,0.01941]
[1764682998665,0.23971057,87606.0,87603.0,0.04812]
[1764682998847,0.53721879,87912.0,87607.0,0.03389]
[1764682998848,0.01141422,87610.0,87607.0,0.03389]
[1764682999055,0.22828812,87609.0,87607.0,0.03389]
[1764682999483,0.22828965,87608.0,87607.0,0.03389]
[1764682999685,0.01141396,87612.0,87608.0,0.01941]
[1764682999845,0.23970088,87610.0,87607.0,0.25418675]
[1764683000068,0.23970088,87610.0,87607.0,0.28289675]
[1764683000430,2.0,87616.0,87614.0,0.23968752]
[1764683000582,2.0,87621.0,87619.0,0.22825919]
[1764683000787,2.0,87621.0,87620.0,0.03389]
[1764683001047,2.22825578,87621.0,87620.0,0.0626]
[1764683001271,2.22825578,87621.0,87620.0,0.03389]
[1764683001488,2.0,87621.0,87620.0,0.03389]
[1764683001694,2.0,87631.0,87624.0,0.01141239]
[1764683001891,2.0,87627.0,87625.0,0.02871]
[1764683002238,2.0,87628.0,87626.0,0.01941]